fUST/lending_fUST_20240115
["ID","MTS","AMOUNT","RATE_DAILY","PERIOD"]
[311685152,1705329045341,-500.0,0.00042095,30]
[311685153,1705329045350,-500.0,0.00042095,30]
[311685154,1705329045359,-500.0,0.00042095,30]
[311685155,1705329045370,-338.16783633,0.00042095,30]
[311685156,1705329045379,-301.93608716,0.00042095,30]
[311685157,1705329045388,-500.0,0.00042095,30]
[311685158,1705329045398,-222.3406944,0.00042095,30]
[311685159,1705329045407,-500.0,0.00042095,30]
[311685160,1705329045416,-400.0,0.00042095,30]
[311685161,1705329045425,-353.90121439,0.00042095,30]
[311685162,1705329045435,-500.0,0.00042095,30]
[311685163,1705329045444,-446.87236554,0.00042095,30]
[311685164,1705329045455,-500.0,0.00042095,30]
[311685165,1705329045464,-500.0,0.00042095,30]
[311685166,1705329045474,-500.0,0.00042095,30]
[311685167,1705329045483,-500.0,0.00042095,30]
[311685168,1705329045492,-500.0,0.00042095,30]
[311685169,1705329045501,-205.22507314,0.00042095,30]
[311685170,1705329045511,-500.0,0.00042095,30]
[311685171,1705329045520,-500.0,0.00042095,30]
[311685172,1705329045529,-263.62648427,0.00042095,30]
[311685173,1705329045538,-500.0,0.00042095,30]
[311685174,1705329045547,-382.43222082,0.00042095,30]
[311685175,1705329045560,-151.0,0.00042095,7]
[311685176,1705329045570,-200.0,0.00042166,30]
[311685177,1705329045579,-200.0,0.00042166,30]
[311685178,1705329045589,-368.0,0.00042166,30]
[311685179,1705329045598,-2000.0,0.00042466,30]
[311685180,1705329045607,-1454.76399855,0.00042557,2]
[311685181,1705329045616,-200.29622934,0.00042567,4]
[311685182,1705329045626,-155.47951252,0.00042567,7]
[311685183,1705329045636,-155.01115512,0.00042569,4]
[311685184,1705329045645,-584.99098729,0.0004257,2]
[311685185,1705329045654,-1034.44190206,0.0004257,2]
[311685186,1705329045663,-307.33436782,0.0004257,4]
[311685187,1705329045672,-150.0,0.00042675,2]
[311685188,1705329045682,-807.299392,0.0004269,7]
[311685189,1705329045692,-807.299392,0.0004269,7]
[311685190,1705329045702,-20000.0,0.00042786,7]
[311685191,1705329045711,-37939.65901736,0.00043,20]
[311685257,1705329837642,254.0,0.00025096,10]
[311685335,1705330238471,-560.92808973,0.00028564,2]
[311685337,1705330238480,-154.95351395,0.00028565,4]
[311685339,1705330238492,-2811.32428673,0.00028565,2]
[311685340,1705330238501,-553.98956998,0.00028566,2]
[311685342,1705330238510,-150.16,0.00028584,2]
[311685343,1705330238519,-164.372067,0.00028585,2]
[311685345,1705330238529,-4852.6920735,0.00028744,2]
[311685346,1705330238538,-250.0,0.00028804,2]
[311685347,1705330238548,-241.6480087,0.00029408,2]
[311685348,1705330238557,-681.78811125,0.0003,3]
[311685349,1705330238566,-765.97949186,0.0003,4]
[311685350,1705330238575,-154.95351395,0.0003,4]
[311685351,1705330238585,-500.0,0.00030136,2]
[311685352,1705330238594,-271.0,0.00030137,2]
[311685353,1705330238603,-306.0,0.00030137,2]
[311685354,1705330238613,-306.2959332,0.00030137,2]
[311685355,1705330238622,-309.4108809,0.00030137,2]
[311685356,1705330238632,-930.75825415,0.00030198,2]
[311685357,1705330238641,-242.83303061,0.00030198,2]
[311685358,1705330238651,-157.4136622,0.00030198,2]
[311685359,1705330238662,-303.0,0.00030513,2]
[311685360,1705330238671,-21467.85683624,0.00030513,4]
[311685361,1705330238687,-4245.79677805,0.00030513,4]
[311685383,1705330240840,-463.04246335,0.00030513,4]
[311685385,1705330240850,-575.22532777,0.00030513,4]
[311685405,1705330242900,-322.69466175,0.00028563,2]
[311685406,1705330242909,-148.41984971,0.00030135,4]
[311685407,1705330242921,-617.55964215,0.00030135,4]
[311685408,1705330242931,-1998.88170898,0.00030513,4]
[311685467,1705330433703,4670.56423581,0.0001631,2]
[311685498,1705330897771,987.5831246,0.00020972,2]
[311685524,1705331263500,195.763577,0.00020894,2]
[311685531,1705331350117,-902.37527688,0.00021779,2]
[311685532,1705331350150,-1171.45763161,0.00021779,2]
[311685533,1705331358496,2060.84094292,0.00020267,2]
[311685536,1705331369728,24900.0,0.0002078,2]
[311685571,1705331433266,-1986.07008117,0.00021548,2]
[311685572,1705331433276,-162.90595907,0.00021753,2]
[311685573,1705331433286,-902.37527688,0.00021753,2]
[311685574,1705331433295,-175.00244479,0.00021754,2]
[311685576,1705331433304,-1580.16851554,0.00021754,2]
[311685579,1705331433314,-154.9690062,0.00021754,2]
[311685582,1705331433323,-260.52342957,0.00021754,2]
[311685585,1705331433333,-849.03657826,0.00021754,2]
[311685588,1705331433343,-198.98525444,0.00021755,2]
[311685592,1705331433352,-323.12147464,0.00021755,2]
[311685593,1705331433362,-164.42093675,0.00021755,2]
[311685595,1705331433371,-154.9690062,0.00021755,4]
[311685597,1705331433381,-1991.06584155,0.00021755,2]
[311685598,1705331433391,-272.20843011,0.00021756,2]
[311685599,1705331433400,-154.9690062,0.00021756,2]
[311685600,1705331433409,-286.00588053,0.00021756,2]
[311685601,1705331433419,-154.9690062,0.00021757,2]
[311685602,1705331433428,-861.45126448,0.00021757,2]
[311685603,1705331433440,-587.55478974,0.00021757,2]
[311685604,1705331433449,-154.9690062,0.00021757,2]
[311685605,1705331433458,-178.67391792,0.00021757,2]
[311685606,1705331433467,-687.07152181,0.00021757,2]
[311685607,1705331433476,-643.52434414,0.00021757,2]
[311685608,1705331433485,-36916.98061949,0.00021757,2]
[311685609,1705331433494,-2967.53,0.00021758,3]
[311685610,1705331433504,-6342.08,0.00021758,3]
[311685611,1705331433513,-5285.07,0.00021758,3]
[311685612,1705331433523,-7993.35951483,0.00021766,2]
[311685613,1705331433532,-1251.7422695,0.00021766,2]
[311685614,1705331433541,-2811.32428673,0.00021766,2]
[311685615,1705331433551,-2031.79600429,0.00021766,2]
[311685616,1705331433561,-2705.10797595,0.00021766,5]
[311685617,1705331433570,-526.06302176,0.00021766,2]
[311685618,1705331433580,-155.02015262,0.00021766,2]
[311685619,1705331433590,-361.02080012,0.00021766,2]
[311685620,1705331433600,-155.20195616,0.00021766,2]
[311685621,1705331433611,-155.01550155,0.00021766,2]
[311685622,1705331433620,-596.1742746,0.00021766,2]
[311685623,1705331433630,-3481.1678536,0.00021767,2]
[311685624,1705331433640,-327.03801435,0.00021767,2]
[311685625,1705331433650,-15894.15433298,0.00021767,2]
[311685626,1705331433660,-154.9690062,0.00021767,2]
[311685627,1705331433669,-154.9690062,0.00021767,2]
[311685628,1705331433680,-261.99076107,0.00021767,2]
[311685629,1705331433692,-2873.77131778,0.00021767,2]
[311685630,1705331433703,-431.03379032,0.00021767,2]
[311685631,1705331433712,-242.79443155,0.00021768,2]
[311685632,1705331433722,-1292.03766784,0.00021768,2]
[311685633,1705331433732,-154.9690062,0.00021768,2]
[311685634,1705331433741,-59082.13691611,0.00021768,2]
[311685639,1705331438350,-677.59372393,0.00021752,2]
[311685640,1705331438360,-322.69466175,0.00021753,2]
[311685641,1705331438370,-4404.23,0.00021756,3]
[311685642,1705331438380,-22031.67483653,0.00021768,2]
[311685643,1705331438391,-246.28917919,0.00021768,2]
[311685644,1705331438401,-10515.69454875,0.00021768,2]
[311685645,1705331438411,-253.76844676,0.00021769,2]
[311685646,1705331438420,-20848.89855073,0.00021769,2]
[311685647,1705331438429,-207.77198332,0.00021769,2]
[311685648,1705331438442,-1738.64209079,0.00021769,2]
[311685649,1705331438451,-3741.03452946,0.00021769,2]
[311685650,1705331438461,-2694.19393221,0.0002177,2]
[311685651,1705331438471,-3126.02728391,0.0002177,2]
[311685652,1705331438480,-19268.70201606,0.0002178,2]
[311685653,1705331438489,-449.77827105,0.0002179,2]
[311685654,1705331438498,-470.04658801,0.0002179,2]
[311685655,1705331438507,-632.85253942,0.0002179,2]
[311685656,1705331438516,-2035.15445086,0.0002179,2]
[311685657,1705331438524,-224.01373371,0.0002179,2]
[311685658,1705331438533,-211.77525213,0.0002179,2]
[311685660,1705331438542,-285.07735822,0.0002179,2]
[311685662,1705331438551,-1038.10415225,0.0002179,2]
[311685664,1705331438560,-155.29898832,0.0002179,2]
[311685666,1705331438569,-155.30837195,0.0002179,2]
[311685667,1705331438578,-860.08094153,0.00021804,2]
[311685669,1705331438587,-1222.24566774,0.00021805,2]
[311685671,1705331438596,-737.17220656,0.00021808,2]
[311685672,1705331438605,-1001.93144407,0.00021896,2]
[311685673,1705331438614,-10147.10693035,0.00021908,2]
[311685674,1705331438623,-166.666666,0.00021918,2]
[311685675,1705331438632,-1673.19184499,0.00021955,2]
[311685676,1705331438640,-11075.54994652,0.00021959,2]
[311685677,1705331438649,-1933.1921985,0.0002196,2]
[311685678,1705331438658,-10556.05000674,0.00021965,2]
[311685680,1705331438668,-155.12808355,0.00021965,2]
[311685681,1705331438677,-155.05578633,0.00021966,2]
[311685682,1705331438689,-6464.96165159,0.00021967,2]
[311685683,1705331438698,-3949.55188121,0.00022,2]
[311685684,1705331438708,-157.00995694,0.00022,2]
[311685686,1705331438716,-425.34837196,0.00022,2]
[311685688,1705331438725,-166.666666,0.00022431,2]
[311685689,1705331438734,-166.666666,0.00022944,2]
[311685691,1705331438743,-166.666666,0.00023456,2]
[311685692,1705331438752,-737.17220653,0.00023533,2]
[311685693,1705331438761,-166.666666,0.00023969,2]
[311685695,1705331438770,-164.57784,0.00024203,2]
[311685697,1705331438779,-166.666666,0.00024482,2]
[311685698,1705331438788,-496.879336,0.0002495,5]
[311685700,1705331438798,-4715.73548857,0.00025,2]
[311685702,1705331438808,-1044.83564264,0.00025,2]
[311685704,1705331438817,-678.39249046,0.00025,2]
[311685706,1705331438827,-154.9690062,0.00025,2]
[311685708,1705331438836,-976.79905731,0.00025088,2]
[311685710,1705331438845,-300.0,0.00025096,2]
[311685712,1705331438855,-737.17220653,0.00025258,2]
[311685714,1705331438864,-1511.63284319,0.00025916,2]
[311685716,1705331438874,-8204.13323222,0.00025918,2]
[311685718,1705331438884,-1205.38665581,0.000264,2]
[311685720,1705331438893,-737.17220653,0.00026983,2]
[311685722,1705331438902,-289.77163343,0.00027,2]
[311685724,1705331438912,-461.06432413,0.00027,2]
[311685726,1705331438923,-10135.33451069,0.000274,2]
[311685728,1705331438936,-688.3625771,0.000277,2]
[311685730,1705331438946,-649.26933279,0.0002772,2]
[311685732,1705331438956,-500.0,0.00027897,2]
[311685734,1705331438966,-274.36755231,0.00028,2]
[311685736,1705331438977,-500.0,0.00028034,2]
[311685738,1705331438987,-500.0,0.00028171,2]
[311685740,1705331438997,-500.0,0.00028308,2]
[311685743,1705331439007,-3127.13861818,0.00028413,2]
[311685745,1705331439016,-500.0,0.00028445,2]
[311685746,1705331439026,-500.0,0.00028582,2]
[311685748,1705331439035,-737.17220653,0.00028708,2]
[311685751,1705331439045,-500.0,0.00028719,2]
[311685753,1705331439055,-3876.60768011,0.00028749,2]
[311685755,1705331439065,-204.76594628,0.00028798,2]
[311685756,1705331439075,-295.71637171,0.00028798,2]
[311685759,1705331439085,-155.03255684,0.00028798,2]
[311685761,1705331439095,-2777.08346351,0.00028798,2]
[311685763,1705331439104,-155.28,0.00028798,2]
[311685765,1705331439113,-521.00009772,0.00028798,2]
[311685767,1705331439123,-301.12544602,0.00028798,2]
[311685768,1705331439132,-160.85351962,0.00028798,2]
[311685770,1705331439141,-296.65440758,0.00028798,2]
[311685773,1705331439151,-200.0,0.00028798,2]
[311685775,1705331439160,-155.26586896,0.00028798,2]
[311685777,1705331439170,-179.9748,0.00028798,2]
[311685779,1705331439179,-506.51441887,0.00028798,2]
[311685781,1705331439193,-212.96062918,0.00028798,2]
[311685783,1705331439202,-207.44196009,0.00028798,2]
[311685785,1705331439211,-413.50041826,0.00028798,2]
[311685787,1705331439220,-155.41425937,0.00028798,2]
[311685789,1705331439230,-155.52017307,0.00028798,2]
[311685791,1705331439239,-229.24243364,0.00028798,2]
[311685793,1705331439249,-309.8296564,0.00028798,2]
[311685795,1705331439259,-155.0,0.00028798,2]
[311685797,1705331439267,-1373.15,0.00028799,2]
[311685799,1705331439277,-1373.15,0.00028799,2]
[311685801,1705331439287,-1373.15,0.00028799,2]
[311685802,1705331439296,-1373.15,0.00028799,2]
[311685804,1705331439305,-1373.15,0.00028799,2]
[311685806,1705331439316,-1373.15,0.00028799,2]
[311685809,1705331439325,-1373.15,0.00028799,2]
[311685811,1705331439336,-1373.15,0.00028799,2]
[311685813,1705331439345,-1373.15,0.00028799,2]
[311685815,1705331439354,-500.0,0.00028799,2]
[311685817,1705331439363,-174.02530516,0.00028799,2]
[311685819,1705331439372,-500.0,0.00028799,2]
[311685820,1705331439382,-500.0,0.00028799,2]
[311685823,1705331439392,-500.0,0.00028799,2]
[311685824,1705331439402,-501292.30625699,0.000288,2]
[311685827,1705331439411,-500.0,0.00028856,2]
[311685829,1705331439421,-161.7603615,0.00028944,2]
[311685830,1705331439430,-500.0,0.00028993,2]
[311685831,1705331439441,-2454.18896115,0.00029,2]
[311685832,1705331439451,-155.0,0.00029,2]
[311685833,1705331439460,-621.46346664,0.00029106,2]
[311685834,1705331439470,-500.0,0.0002913,2]
[311685835,1705331439479,-500.0,0.00029267,2]
[311685836,1705331439489,-153.0,0.00029315,2]
[311685837,1705331439499,-153.0,0.00029315,2]
[311685838,1705331439509,-153.0,0.00029315,2]
[311685839,1705331439519,-153.0,0.00029315,2]
[311685840,1705331439528,-632.06739229,0.00029316,2]
[311685841,1705331439538,-500.0,0.00029404,2]
[311685842,1705331439547,-500.0,0.00029541,2]
[311685843,1705331439557,-153.0,0.00029578,2]
[311685844,1705331439567,-500.0,0.00029678,2]
[311685845,1705331439576,-49314.41861174,0.0002979,7]
[311685846,1705331439586,-404.50736868,0.000299,2]
[311685847,1705331439595,-150.0,0.00029944,2]
[311685848,1705331439604,-1373.15,0.00029999,2]
[311685849,1705331439613,-500.0,0.00029999,4]
[311685850,1705331439623,-366.27903492,0.00029999,4]
[311685851,1705331439632,-384.7243927,0.00029999,4]
[311685852,1705331439641,-500.0,0.00029999,4]
[311685854,1705331439650,-423.35148576,0.00029999,4]
[311685856,1705331439660,-500.0,0.00029999,4]
[311685858,1705331439669,-500.0,0.00029999,4]
[311685860,1705331439678,-500.0,0.00029999,4]
[311685862,1705331439690,-500.0,0.00029999,4]
[311685864,1705331439699,-500.0,0.00029999,4]
[311685866,1705331439708,-500.0,0.00029999,4]
[311685868,1705331439717,-500.0,0.00029999,4]
[311685870,1705331439727,-500.0,0.00029999,4]
[311685871,1705331439736,-500.0,0.00029999,4]
[311685873,1705331439745,-352.67134532,0.00029999,4]
[311685875,1705331439754,-500.0,0.00029999,4]
[311685877,1705331439763,-500.0,0.00029999,4]
[311685879,1705331439772,-500.0,0.00029999,4]
[311685881,1705331439782,-500.0,0.00029999,4]
[311685883,1705331439791,-681.78811125,0.0003,3]
[311685885,1705331439800,-900.59678191,0.0003,2]
[311685887,1705331439810,-166.59677014,0.0003,2]
[311685889,1705331439819,-154.95351395,0.0003,4]
[311685891,1705331439829,-30296.60621537,0.0003,2]
[311685893,1705331439839,-6188.54002624,0.0003,2]
[311685895,1705331439849,-425.54416214,0.0003,4]
[311685897,1705331439859,-10080.32088893,0.0003,2]
[311685899,1705331439868,-2190.506869,0.0003,2]
[311685901,1705331439878,-365968.87233501,0.0003,2]
[311685903,1705331439888,-2052.416144,0.0003,2]
[311685905,1705331439898,-213.0,0.0003,2]
[311685916,1705331439993,-197.5089968,0.0003013,2]
[311685918,1705331440002,-153.0,0.00030137,2]
[311685920,1705331440012,-153.0,0.00030137,2]
[311685922,1705331440021,-153.0,0.00030137,2]
[311685924,1705331440030,-153.0,0.00030137,2]
[311685926,1705331440039,-153.0,0.00030137,2]
[311685928,1705331440048,-153.0,0.00030137,2]
[311685930,1705331440057,-153.0,0.00030137,2]
[311685932,1705331440066,-153.0,0.00030137,2]
[311685936,1705331440075,-153.0,0.00030137,2]
[311685940,1705331440084,-153.0,0.00030137,2]
[311685944,1705331440093,-205.1344058,0.00030137,2]
[311685948,1705331440103,-306.0,0.00030137,2]
[311685951,1705331440112,-198.8089634,0.00030137,2]
[311685953,1705331440121,-202.1670954,0.00030137,2]
[311685955,1705331440130,-153.0,0.00030137,2]
[311685958,1705331440139,-306.0,0.00030137,2]
[311685960,1705331440148,-306.0,0.00030137,2]
[311685962,1705331440157,-198.8089634,0.00030137,2]
[311685964,1705331440168,-306.0,0.00030137,2]
[311685966,1705331440177,-198.8577961,0.00030137,2]
[311685968,1705331440189,-198.8577961,0.00030137,2]
[311685970,1705331440200,-198.711298,0.00030137,2]
[311685972,1705331440210,-154.1994419,0.00030137,2]
[311685974,1705331440219,-441.8574589,0.00030137,2]
[311685976,1705331440227,-154.6228574,0.00030137,2]
[311685978,1705331440236,-153.1880119,0.00030137,2]
[311685980,1705331440247,-169.1879247,0.00030137,2]
[311685982,1705331440256,-198.8577961,0.00030137,2]
[311685984,1705331440266,-198.8577961,0.00030137,2]
[311685986,1705331440275,-198.8577961,0.00030137,2]
[311685988,1705331440285,-198.8577961,0.00030137,2]
[311685990,1705331440295,-198.6136326,0.00030137,2]
[311685992,1705331440305,-187.59193649,0.00030198,2]
[311685994,1705331440313,-155.0,0.0003037,2]
[311685996,1705331440323,-229.10235383,0.00030512,2]
[311685998,1705331440332,-241.494139,0.00030513,2]
[311686000,1705331440341,-241.494139,0.00030513,2]
[311686002,1705331440350,-7131.56442439,0.00030513,4]
[311686004,1705331440359,-3136.33113092,0.00030513,4]
[311686006,1705331440369,-276.64466754,0.00030513,4]
[311686008,1705331440378,-350.93054121,0.00030513,2]
[311686010,1705331440387,-10023.05464007,0.00030513,4]
[311686011,1705331440396,-410.1520012,0.00030513,2]
[311686013,1705331440406,-282.83454941,0.00030513,3]
[311686016,1705331440415,-56719.32517393,0.00030513,5]
[311686017,1705331440424,-50000.0,0.00030513,3]
[311686019,1705331440435,-50000.0,0.00030513,3]
[311686021,1705331440444,-50122.59778375,0.00030513,3]
[311686023,1705331440453,-3484.78805613,0.00030513,3]
[311686025,1705331440463,-50000.0,0.00030513,4]
[311686027,1705331440471,-50000.0,0.00030513,4]
[311686029,1705331440481,-50000.0,0.00030513,4]
[311686031,1705331440491,-54211.32586912,0.00030513,4]
[311686033,1705331440501,-200.0,0.00030626,15]
[311686035,1705331440511,-173.0,0.0003066,30]
[311686037,1705331440520,-377.0,0.0003067,30]
[311686039,1705331440530,-173.0,0.0003067,30]
[311686041,1705331440540,-377.0,0.0003068,30]
[311686043,1705331440550,-173.0,0.0003068,30]
[311686045,1705331440559,-377.0,0.0003069,30]
[311686048,1705331440569,-620.60336961,0.00030782,2]
[311686050,1705331440579,-12237.72438539,0.0003088,5]
[311686052,1705331440588,-196553.75935033,0.00030898,2]
[311686054,1705331440598,-151.0,0.00030898,2]
[311686056,1705331440608,-241.494139,0.00030898,2]
[311686058,1705331440617,-241.494139,0.00030898,2]
[311686060,1705331440626,-1066.922339,0.00030898,2]
[311686062,1705331440634,-1066.922339,0.00030898,2]
[311686064,1705331440643,-151.0,0.00030898,2]
[311686066,1705331440652,-377.0,0.00030969,30]
[311686067,1705331440661,-173.0,0.00030969,30]
[311686069,1705331440670,-377.0,0.00030979,30]
[311686072,1705331440679,-173.0,0.00030979,30]
[311686073,1705331440690,-190.35191418,0.00030983,4]
[311686076,1705331440701,-377.0,0.00030989,30]
[311686078,1705331440710,-173.0,0.00030989,30]
[311686080,1705331440719,-155.21958789,0.00030998,4]
[311686081,1705331440729,-260.63257169,0.00030998,4]
[311686083,1705331440738,-7694.55575676,0.00030998,4]
[311686085,1705331440747,-164.90810386,0.00030998,4]
[311686087,1705331440756,-646.09701396,0.00030998,4]
[311686090,1705331440766,-4006.49029604,0.00030998,4]
[311686091,1705331440775,-219.77457894,0.00030998,4]
[311686092,1705331440784,-155.40718205,0.00030998,4]
[311686094,1705331440794,-155.01705188,0.00030998,2]
[311686095,1705331440804,-202.04614041,0.00030998,2]
[311686097,1705331440814,-309.84507746,0.00030998,4]
[311686098,1705331440823,-48709.33021505,0.00031,4]
[311686100,1705331440837,-4232.11545082,0.00031,4]
[311686102,1705331440848,-6508.6790563,0.00031,4]
[311686103,1705331440859,-2009.57254913,0.00031,4]
[311686114,1705331441030,-1516.91275005,0.00031,4]
[311686116,1705331441041,-843.4745818,0.00031,4]
[311686283,1705331443473,-900.97772844,0.00028799,2]
[311686285,1705331443483,-900.97772844,0.00028799,2]
[311686287,1705331443492,-900.97772844,0.00028799,2]
[311686289,1705331443501,-900.97772844,0.00028799,2]
[311686291,1705331443509,-900.97772844,0.00028799,2]
[311686293,1705331443518,-900.97772844,0.00028799,2]
[311686295,1705331443528,-900.97772844,0.00028799,2]
[311686297,1705331443537,-900.97772844,0.00028799,2]
[311686299,1705331443546,-500.0,0.00028799,2]
[311686301,1705331443555,-877.87817248,0.00028799,2]
[311686357,1705331446161,-154.9690062,0.0002746,4]
[311686358,1705331446173,-2031.79600429,0.00028798,2]
[311686359,1705331446182,-155.05269684,0.00028798,2]
[311686360,1705331446193,-1288.9766709,0.00028798,2]
[311686361,1705331446202,-200.26775243,0.00028798,5]
[311686362,1705331446212,-2811.32428673,0.00028798,2]
[311686363,1705331446222,-7993.35951483,0.00028798,2]
[311686366,1705331446231,-23.09955596,0.00028799,2]
[311686369,1705331446240,-900.97772844,0.00028799,2]
[311686372,1705331446251,-500.0,0.00028799,2]
[311686376,1705331446261,-174.58713777,0.00028799,2]
[311686379,1705331446271,-2207.37336305,0.00028799,2]
[311686381,1705331446281,-900.97772844,0.00028799,2]
[311686383,1705331446290,-500.0,0.00028799,2]
[311686385,1705331446300,-638.40226094,0.00028799,2]
[311686387,1705331446309,-900.97772844,0.00028799,2]
[311686389,1705331446318,-900.97772844,0.00028799,2]
[311686391,1705331446327,-2207.37336305,0.00028799,2]
[311686393,1705331446337,-900.97772844,0.00028799,2]
[311686395,1705331446347,-2207.37336305,0.00028799,2]
[311686397,1705331446356,-900.97772844,0.00028799,2]
[311686400,1705331446366,-2207.37336305,0.00028799,2]
[311686402,1705331446375,-900.97772844,0.00028799,2]
[311686404,1705331446385,-2207.37336305,0.00028799,2]
[311686407,1705331446395,-900.97772844,0.00028799,2]
[311686410,1705331446404,-2207.37336305,0.00028799,2]
[311686413,1705331446414,-2207.37336305,0.00028799,2]
[311686417,1705331446424,-900.97772844,0.00028799,2]
[311686420,1705331446433,-2207.37336305,0.00028799,2]
[311686423,1705331446444,-500.0,0.00028799,2]
[311686426,1705331446454,-900.97772844,0.00028799,2]
[311686429,1705331446463,-2207.37336305,0.00028799,2]
[311686432,1705331446473,-900.97772844,0.00028799,2]
[311686435,1705331446484,-2207.37336305,0.00028799,2]
[311686438,1705331446495,-2207.37336305,0.00028799,2]
[311686440,1705331446505,-500.0,0.00028799,2]
[311686443,1705331446515,-2207.37336305,0.00028799,2]
[311686445,1705331446525,-900.97772844,0.00028799,2]
[311686448,1705331446535,-2207.37336305,0.00028799,2]
[311686450,1705331446546,-2207.37336305,0.00028799,2]
[311686452,1705331446557,-500.0,0.00028799,2]
[311686453,1705331446567,-900.97772844,0.00028799,2]
[311686454,1705331446576,-500.0,0.00028799,2]
[311686455,1705331446585,-2207.37336305,0.00028799,2]
[311686456,1705331446594,-900.97772844,0.00028799,2]
[311686457,1705331446603,-2207.37336305,0.00028799,2]
[311686458,1705331446613,-900.97772844,0.00028799,2]
[311686459,1705331446622,-520.99886358,0.00028799,2]
[311686460,1705331446631,-900.97772844,0.00028799,2]
[311686461,1705331446640,-900.97772844,0.00028799,2]
[311686462,1705331446649,-900.97772844,0.00028799,2]
[311686463,1705331446658,-2207.37336305,0.00028799,2]
[311686464,1705331446668,-2207.37336305,0.00028799,2]
[311686465,1705331446677,-900.97772844,0.00028799,2]
[311686466,1705331446686,-2207.37336305,0.00028799,2]
[311686467,1705331446696,-2207.37336305,0.00028799,2]
[311686468,1705331446705,-900.97772844,0.00028799,2]
[311686469,1705331446714,-900.97772844,0.00028799,2]
[311686470,1705331446723,-500.0,0.00028799,2]
[311686471,1705331446732,-2207.37336305,0.00028799,2]
[311686472,1705331446741,-2207.37336305,0.00028799,2]
[311686473,1705331446751,-500.0,0.00028799,2]
[311686474,1705331446760,-500.0,0.00028799,2]
[311686475,1705331446769,-2207.37336305,0.00028799,2]
[311686476,1705331446778,-2207.37336305,0.00028799,2]
[311686477,1705331446787,-900.97772844,0.00028799,2]
[311686478,1705331446797,-500.0,0.00028799,2]
[311686479,1705331446806,-388.59643634,0.00028799,2]
[311686480,1705331446815,-500.0,0.00028799,2]
[311686481,1705331446825,-500.0,0.00028799,2]
[311686482,1705331446834,-2207.37336305,0.00028799,2]
[311686483,1705331446843,-900.97772844,0.00028799,2]
[311686484,1705331446852,-500.0,0.00028799,2]
[311686485,1705331446862,-500.0,0.00028799,2]
[311686486,1705331446871,-900.97772844,0.00028799,2]
[311686487,1705331446881,-2207.37336305,0.00028799,2]
[311686488,1705331446890,-2207.37336305,0.00028799,2]
[311686489,1705331446899,-502.77921806,0.00028799,2]
[311686490,1705331446908,-900.97772844,0.00028799,2]
[311686491,1705331446917,-2207.37336305,0.00028799,2]
[311686492,1705331446927,-500.0,0.00028799,2]
[311686493,1705331446936,-2207.37336305,0.00028799,2]
[311686494,1705331446947,-2207.37336305,0.00028799,2]
[311686495,1705331446956,-2207.37336305,0.00028799,2]
[311686496,1705331446966,-2207.37336305,0.00028799,2]
[311686497,1705331446975,-2207.37336305,0.00028799,2]
[311686498,1705331446984,-2207.37336305,0.00028799,2]
[311686499,1705331446994,-500.0,0.00028799,2]
[311686500,1705331447003,-218.87556881,0.00030999,4]
[311686501,1705331447012,-273.52161536,0.00030999,4]
[311686502,1705331447021,-33125.17079717,0.00031,4]
[311686503,1705331447030,-1066.922339,0.00031,2]
[311686504,1705331447039,-1066.922339,0.00031,2]
[311686505,1705331447048,-1500.0,0.00031,2]
[311686506,1705331447057,-151.0,0.00031,2]
[311686507,1705331447066,-274.57,0.000311,4]
[311686508,1705331447075,-195.763577,0.00031341,2]
[311686509,1705331447084,-4493.6466783,0.00031577,2]
[311686510,1705331447093,-155.0,0.0003174,2]
[311686511,1705331447103,-150.0,0.000319,2]
[311686512,1705331447112,-156.7194451,0.00031985,7]
[311686513,1705331447121,-190.55418585,0.00032,4]
[311686514,1705331447130,-20995.27954186,0.00032,15]
[311686515,1705331447140,-151.0,0.00032,2]
[311686516,1705331447149,-1500.0,0.00032,2]
[311686517,1705331447158,-200.0,0.00032,4]